Cogmind - Beta 14 @@@ ROGUE MODE // 2024.10.25 @ 18:46:01 Player: pd-p0l Result: Destroyed self via exploding Fusion Modulator Performance ------------- Evolutions (2) 1000 Regions Visited (3) 600 Robots Destroyed (38) 190 Value Destroyed (1042) 1042 Prototype IDs (2) 40 Alien Tech Used (0) 0 Bonus (18) 18 TOTAL SCORE: 2890 Bonus ------- High Alert Combat Kills 22 Friendly Fire -4 Cogmind --------- Core Integrity 0/550 Matter 75/300 Energy 79/125 System Corruption 0% Temperature Cool (24) Movement Treading (145) Location -8/Materials Parts ------- > --- POWER (1) -------- Light Ion Engine > --- PROPULSION (4) --- Advanced Treads > --- UTILITY (4) ------ Small Storage Unit Signal Interpreter > --- WEAPON (2) ------- Mini Grenade Launcher Katana > --- INVENTORY (8) ---- System Shield Peak State ------------ > --- POWER ------------ Light Ion Engine > --- PROPULSION ------- Advanced Treads > --- UTILITY ---------- Small Storage Unit Signal Interpreter > --- WEAPON ----------- Mini Grenade Launcher Katana > --- INVENTORY -------- System Shield [Rating: 11] Favorites ----------- Power Ion Engine Engine Ion Engine Propulsion Light Treads Treads Light Treads Leg Aluminum Leg Flight Unit VTOL Module Utility Core Shielding Device Seismic Detector Storage High-capacity Storage Unit Processor Signal Interpreter Protection Core Shielding Weapon Medium Laser Energy Gun Medium Laser Ballistic Gun Light Assault Rifle Launcher Mini Grenade Launcher Slashing Weapon Katana Build | -11 -10 -10 -8 ------- Run | Yrd Mat Sub Mat Slots Evolved 4 | . . . 4 Power . | . . . . Propulsion 2 | . . . 2 Utility 2 | . . . 2 Weapon . | . . . . Parts Attached 24 | 6 7 . 11 Power 2 | . 1 . 1 Engine 2 | . 1 . 1 Core . | . . . . Reactor . | . . . . Propulsion 8 | 3 2 . 3 Treads 3 | 2 . . 1 Leg 3 | 1 2 . . Wheel . | . . . . Hover . | . . . . Flight 2 | . . . 2 Utility 6 | 1 2 . 3 Device 1 | . . . 1 Storage 3 | 1 1 . 1 Processor 1 | . . . 1 Hackware . | . . . . Protection 1 | . 1 . . Artifact . | . . . . Weapon 8 | 2 2 . 4 Energy Gun 2 | 1 1 . . Energy Cannon . | . . . . Ballistic Gun 3 | 1 1 . 1 Ballistic Cannon . | . . . . Launcher 2 | . . . 2 Special Weapon . | . . . . Impact Weapon . | . . . . Slashing Weapon 1 | . . . 1 Piercing Weapon . | . . . . Special Melee Weapon . | . . . . Unidentified Prototypes . | . . . . Parts Lost 8 | . 5 1 2 Power 1 | . 1 . . Propulsion 2 | . 1 . 1 Utility 1 | . . . 1 Weapon 4 | . 3 1 . Highest Loss Streak 1 | . 1 1 1 To Critical Strikes . | . . . . Average Slot Usage (%) 75 | . 85 56 23 Engine 5 | . 7 . . Treads 14 | . 18 . . Leg 7 | . 6 22 . Storage 12 | . 14 11 . Protection 12 | . 13 11 . Energy Gun 11 | . 14 . . Ballistic Gun 9 | . 10 10 1 Peak Build Rating 11 | 5 8 7 11 Average Rating 6 | 4 7 5 3 On Entrance 2 | . 5 6 . Naked Turns 52 | . . 50 2 Heaviest Build 50 | 9 50 42 11 Greatest Support 40 | 40 40 20 22 Greatest Overweight (x) 2 | . 2 2 1 Average Overweight (x) . | . 1 . . Largest Inventory Capacity 20 | 8 20 20 8 Average Capacity 15 | 7 18 16 5 Most Carried 14 | 7 13 14 5 Average Carried 9 | 5 10 11 4 Final Capacity 20 | 8 20 5 8 Final Carried 12 | 7 12 5 1 Class Distribution -------------------- 100% | Mutant Dominant Class ---------------- Mutant | -10/Materials Mutant | -10/Subcaves Mutant | -8/Materials Resources | -11 -10 -10 -8 ----------- Run | Yrd Mat Sub Mat Matter Collected 498 | 305 148 . 45 Remotely . | . . . . Salvage Created 1171 | 181 698 16 276 Parts 73 | 14 44 4 11 Haulers Intercepted . | . . . . Recyclers Shooed 2 | 1 1 . . Parts Field Recycled . | . . . . Retrieved Matter . | . . . . Parts Self-Destructed 5 | . . 5 . Prevented . | . . . . Kills | -11 -10 -10 -8 ------- Run | Yrd Mat Sub Mat Combat Hostiles Destroyed 26 | . 16 1 9 Guns 17 | . 16 . 1 AOE 9 | . . 1 8 Classes Destroyed 11 | 2 5 1 3 Worker 1 | . 1 . . Tunneler 4 | 4 . . . Recycler 2 | 1 1 . . Mechanic 1 | . . . 1 Operator 2 | . 2 . . Watcher 2 | . 2 . . Swarmer 6 | . 6 . . Grunt 17 | . 10 . 7 Duelist 1 | . . . 1 Sentry 1 | . . . 1 Subdweller 1 | . . 1 . Best Kill Streak 8 | 4 3 1 8 Combat Bots Only 7 | . 3 1 7 Max Kills in Single Turn 2 | 2 1 1 2 Gunslinging . | . . . . Exploded 2 | . . 1 2 Melee . | . . . . Uniques/NPCs Destroyed . | . . . . Combat | -11 -10 -10 -8 -------- Run | Yrd Mat Sub Mat Hostile Shots Fired 175 | . 108 16 51 Missed 54 | . 31 5 18 Damage Taken 1820 | . 891 214 715 Core 837 | . 160 87 590 Absorbed by Shields . | . . . . Redirected to Shielding 43 | . 33 10 . Core Remaining (%) 50 | 100 . 1 . Volleys Fired 135 | 15 96 3 21 Largest 2 | 2 2 1 1 Hottest 90 | 70 90 20 30 Shots Fired 182 | 21 137 3 21 Gun 167 | 21 137 3 6 Cannon . | . . . . Launcher 15 | . . . 15 Special . | . . . . Kinetic 85 | 15 61 3 6 Thermal 77 | 6 71 . . Explosive 15 | . . . 15 Electromagnetic 5 | . 5 . . Robot Hit Streak 12 | 4 12 1 3 Robot Miss Streak 4 | 2 4 2 2 Penetration Max . | . . . . Secondary Targets 1 | . 1 . . Max Gunslinging Chain 1 | . 1 . . Shots Hit Robots 106 | 11 85 1 9 Core Hits 64 | 6 38 1 19 Critical Kills . | . . . . Critical Parts Destroyed . | . . . . Critical Strikes 3 | . 3 . . Burn 3 | . 3 . . Melee Attacks . | . . . . Impact . | . . . . Slashing . | . . . . Piercing . | . . . . Sneak Attacks . | . . . . Combat Hostiles . | . . . . Follow-up Attacks . | . . . . Damage Inflicted 2148 | 145 954 10 1039 Guns 1160 | 145 945 10 60 Cannons . | . . . . Explosions 971 | . . . 971 Melee . | . . . . Ramming 17 | . 9 . 8 Kinetic 540 | 83 387 10 60 Thermal 641 | 62 494 . 85 Explosive 886 | . . . 886 Electromagnetic 64 | . 64 . . Impact . | . . . . Slashing . | . . . . Piercing . | . . . . Highest Corruption . | . . . . Average Corruption . | . . . . Corruption Purged . | . . . . Corruption Blocked . | . . . . Overload Shots . | . . . . Overflow Damage 27 | . . . 27 Projectiles . | . . . . Explosions 27 | . . . 27 Melee . | . . . . Knockbacks . | . . . . Impact . | . . . . Kinetic . | . . . . Secondary . | . . . . Self-Inflicted Damage 234 | . . . 234 Shots 4 | . . . 4 Rammed 1 | . . . 1 Targets Rammed 2 | . 1 . 1 Kicked 1 | . 1 . . Crushed . | . . . . Highest Temperature 246 | . 246 . 29 Average Temperature 56 | . 56 . 14 Received Heat Transfer 594 | . 393 48 153 Effects 1 | . 1 . . Interference 1 | . 1 . . Siege Activations . | . . . . Robots Corrupted . | . . . . Combat Hostiles . | . . . . Parts Fried . | . . . . Impact Corruptions . | . . . . Robots Melted . | . . . . Combat Hostiles . | . . . . Parts Melted 3 | . 3 . . Heat Transferred 1950 | 185 1665 . 100 Parts Sabotaged . | . . . . Parts Stolen . | . . . . Parts Stripped . | . . . . Power Chain Reactions . | . . . . Alert | -11 -10 -10 -8 ------- Run | Yrd Mat Sub Mat Peak Influence 501 | 25 165 . 501 Initial 16 | . 16 . 3 Average 94 | 14 90 . 192 Maximum Alert Level 2 | . . . 2 Low Security (%) 94 | 100 100 . 50 Level 1 4 | . . . 44 Level 2 . | . . . 5 Level 3 . | . . . . Level 4 . | . . . . Level 5 . | . . . . High Security . | . . . . Max Security . | . . . . Squads Dispatched 6 | . 4 . 2 Investigation 2 | . 2 . . Extermination . | . . . . Reinforcement 4 | . 2 . 2 Assault . | . . . . Garrison . | . . . . Intercept . | . . . . Searches Triggered . | . . . . Construction Impeded 1 | . . . 1 Haulers Reinforced . | . . . . Active Scanning Responses . | . . . . Cargo Convoy Interrupts . | . . . . Stealth | -11 -10 -10 -8 --------- Run | Yrd Mat Sub Mat Distress Signals 2 | . 1 . 1 Communications Jammed . | . . . . Distress Signals . | . . . . Times Spotted 57 | . 31 6 20 Peak Tracking Total 11 | . 3 6 11 Tactical Retreats 4 | . 1 . 3 Traps | -11 -10 -10 -8 ------- Run | Yrd Mat Sub Mat Traps Triggered 3 | . 2 . 1 Indirectly . | . . . . Trap Hack Attempts . | . . . . Triggered . | . . . . Disarmed . | . . . . Reprogrammed . | . . . . Reused . | . . . . Traps Extracted . | . . . . Installed . | . . . . Triggered . | . . . . Machines | -11 -10 -10 -8 ---------- Run | Yrd Mat Sub Mat Machines Disabled 5 | . . . 5 Max in Single Turn 2 | . . . 2 Machines Repaired . | . . . . Machines Dismantled . | . . . . Machines Sabotaged . | . . . . Overloaded Fab Kills . | . . . . Hacking | -11 -10 -10 -8 --------- Run | Yrd Mat Sub Mat Machines Accessed 3 | . 3 . . Terminals 3 | . 3 . . Fabricators . | . . . . Repair Stations . | . . . . Recycling Units . | . . . . Scanalyzers . | . . . . Garrison Access . | . . . . Total Hacks 6 | . 6 . . Successful 4 | . 4 . . Failed 2 | . 2 . . Catastrophic 1 | . 1 . . Database Lockouts . | . . . . Manual 2 | . 2 . . Terminals 6 | . 6 . . Fabricators . | . . . . Repair Stations . | . . . . Recycling Units . | . . . . Scanalyzers . | . . . . Garrison Access . | . . . . Terminal Hacks 4 | . 4 . . Robot Analysis 1 | . 1 . . Prototype ID Bank 1 | . 1 . . Hauler Manifests 2 | . 2 . . Fabricator Hacks . | . . . . Repair Station Hacks . | . . . . Recycling Unit Hacks . | . . . . Scanalyzer . | . . . . Garrison Access Hacks . | . . . . Unauthorized Hacks . | . . . . Terminals . | . . . . Fabricators . | . . . . Repair Stations . | . . . . Recycling Units . | . . . . Scanalyzers . | . . . . Garrison Access . | . . . . Data Cores Recovered . | . . . . Used . | . . . . Hacking Detections 1 | . 1 . . Full Trace Events . | . . . . Feedback Events . | . . . . Feedback Blocked . | . . . . Robot Schematics Acquired . | . . . . Robots Built . | . . . . Authchips . | . . . . Time . | . . . . Total Robot Build Rating . | . . . . Part Schematics Acquired . | . . . . Parts Built . | . . . . Authchips . | . . . . Time . | . . . . Total Part Build Rating . | . . . . Parts Repaired . | . . . . Time . | . . . . Parts Recycled . | . . . . Recycled Matter . | . . . . Retrieved Matter . | . . . . Retrieved Components . | . . . . Parts Scanalyzed . | . . . . Part Schematics Acquired . | . . . . Parts Damaged . | . . . . Bothacking | -11 -10 -10 -8 ------------ Run | Yrd Mat Sub Mat Used RIF Installer . | . . . . Robots Hacked . | . . . . Non-combat . | . . . . Combat . | . . . . Robot Hacks Applied . | . . . . Relay Couplers Released . | . . . . Fabnet Peak Effective % . | . . . . Robots Rewired . | . . . . Allies Hacked . | . . . . Hacks Repelled . | . . . . Allies | -11 -10 -10 -8 -------- Run | Yrd Mat Sub Mat Total Allies . | . . . . Largest Group . | . . . . Highest-Rated Group . | . . . . Highest-Rated Ally . | . . . . Total Orders . | . . . . Ally Attacks . | . . . . Total Damage . | . . . . Kills . | . . . . Allies Corrupted . | . . . . Allies Melted . | . . . . Intel | -11 -10 -10 -8 ------- Run | Yrd Mat Sub Mat Robot Analysis Total 1 | . 1 . . Derelict Logs Recovered . | . . . . Drone Launches . | . . . . Drone Recoveries . | . . . . Exploration | -11 -10 -10 -8 ------------- Run | Yrd Mat Sub Mat Turns Passed 2329 | 203 1655 242 229 Spaces Moved 1148 | 100 559 171 318 Core 304 | 9 . 100 195 Treads 536 | 91 443 . 2 Legs 187 | . 116 71 . Wheels . | . . . . Hover . | . . . . Flight 121 | . . . 121 Fastest Speed 35 | 50 160 50 35 Average Speed 165 | 150 244 137 46 Slowest Speed 320 | 160 320 260 145 Overloaded Moves . | . . . . Propulsion Burnouts . | . . . . Robots Hopped 2 | . . . 2 Cave-ins Triggered . | . . . . Exploration Rate (%) 34 | 5 88 18 28 Regions Visited 3 Branch Regions 1 Pre-discovered Areas . | . . . . Known Exits Taken . | . . . . Unknown Exits Taken 3 | 1 1 1 . Scrap Searched . | . . . . Spaces Dug . | . . . . Terrain Destroyed 72 | . . . 72 Melee . | . . . . Projectile . | . . . . AOE 72 | . . . 72 Terrain Rammed . | . . . . Walls Destroyed . | . . . . Machines Disabled . | . . . . Actions | -11 -10 -10 -8 --------- Run | Yrd Mat Sub Mat Total 1403 | 132 719 175 377 Wait 55 | . 41 1 13 Move 1141 | 99 558 170 314 Hop 2 | . . . 2 Pick Up 37 | 12 13 1 11 Fast Attach . | . . . . Attach 21 | 5 5 . 11 Detach . | . . . . Swap 3 | 1 2 . . Drop 7 | . 3 . 4 Fire 135 | 15 96 3 21 Melee . | . . . . Ram 1 | . . . 1 Kick 1 | . 1 . . Crush . | . . . . Escape Stasis . | . . . . Rewire . | . . . . Trap . | . . . . Miscellaneous . | . . . . Route ------- -11/Scrapyard -10/Materials (discovered 5 exits: [*Mat x3] / [*Min] / [*Sub]) -10/Subcaves -8/Materials History --------- Turn | Location | Event 8 | -11/Scrapyard | Discovered new exit (range 16) 204 | -11/Scrapyard | Entered Materials 304 | -10/Materials | Build established: Mutant 379 | -10/Materials | Discovered new exit (range 6) 428 | -10/Materials | Discovered new exit (range 3) 961 | -10/Materials | Discovered new exit (range 5) 1121 | -10/Materials | Core integrity fell below 50% 1807 | -10/Materials | Discovered new exit (range 14) 1831 | -10/Materials | Discovered new exit (range 9) 1859 | -10/Materials | Entered Subcaves 2000 | -10/Subcaves | Shifting Twisted Machinery released Flamer 2021 | -10/Subcaves | Shifting Twisted Machinery released Battle Rifle 2030 | -10/Subcaves | Ambushed by swarm of Subdwellers 2050 | -10/Subcaves | Core integrity fell below 20% 2051 | -10/Subcaves | Released all parts (4) 2094 | -10/Subcaves | Discovered new exit (range 5) 2095 | -10/Subcaves | Lost 3 allies 2101 | -10/Subcaves | Entered Materials 2101 | -8/Materials | Evolved 4 slots: Propulsion x2, Utility x2 2265 | -8/Materials | Destroyed 7 combat bots 2282 | -8/Materials | Core integrity fell below 50% 2330 | -8/Materials | Destroyed self via exploding Fusion Modulator Last Messages --------------- 02264_ U-05 Engineer builds a Wall. 02265_ The unstable cave ceiling collapses. 02266_ U-05 Engineer lays Concrete. 02270_ K-01 Serf collects debris. 02274_ Slammed into K-01 Serf. 02274_ Seismic Detector broken. 02274_ Destabilizing: Short circuit. 02279_ K-01 Serf cleans the Processing Tank. 02284_ U-05 Engineer builds a Wall. 02284_ U-05 Engineer builds a Door. 02298_ K-01 Serf cleans the Garrison Access. 02306_ Broken Seismic Detector destroyed. 02320_ G-47 Trooper destroyed. 02322_ Acquired Adv. Treads. 02323_ R-06 Scavenger collects Imp. Heat Sink. 02330_ Fusion Modulator explodes. 02330_ Destroyed Com. Wheel. 02330_ Destroyed Tractor Beam. 02330_ Y-45 Defender destroyed. Map ----- +----------------------------------------------------+ | ?????????????????????????????????????????? | | ?????????????????????????????????????????? | | ?????????????????????????????????????????? | | ?????????????????????????????????????????? | | ?????????????????????????????????????????? | | ?????????????????????????????????????????? | | ?????????????????????????????????????????? | | ?????????????????????????????????????????? | | ?????????????????????????????????????????? | | ?????????????????????????????????????????? | | ?????????????????????????????????????????? | | ?????????????????????????????????????????? | | ?????????????????????????????????????????? | | ?????????????????????????????????????????? | | ?????????????????????????????????????????? | | ??????????????###+####???????????????????? | | ??????????????# #???????????????????? | | ??????????????# ########????????????? | | ??????????????# [!## ###+#????????? | | ??????????????# !!## ?????????? | | ??????????????# ## ??????????? | | ??????????????# ## ??????????? | | ??????????????? ;; #????????????? | | ?????????#######;;; #?????????????? | | ?????????# ######????????? | | ?????????# @ ##"""#????????? | | ?????????# """ % a##"T"########## | | ?????????# """ r | | ?????????# """ ; | | ?????????# ; | | ?????????####### ! ;;;;;+######" "####### | | ???????????????#%;;;;; ????#"G"#?????? | | ??????????????? *! # ![ ???#"""#?????? | | ??????????????? # ![ ?#####?????? | | ??????????????? #? ![ ???????????? | | ??????????????? #? ???????????? | | ??????????????# #?? ???????????? | | ??????????????# #??? ?? ??????????? | | ??????????????# #??????? ??????????? | | ??????????????# ]]]#????????#??????????? | | ??????????????? ]]?????????????????????? | | ?????????????????????????????????????????? | | ?????????????????????????????????????????? | | ?????????????????????????????????????????? | | ?????????????????????????????????????????? | | ?????????????????????????????????????????? | | ?????????????????????????????????????????? | | ?????????????????????????????????????????? | | ?????????????????????????????????????????? | | ?????????????????????????????????????????? | +----------------------------------------------------+ Best States ------------- Heat Dissipation 31 Energy Generation 10 Energy Capacity 250 Matter Stores 300 Matter Capacity 300 Sight Range 16 Terrain Scan Density 10 Core Shielding 20 Evasion (%) 63 Recoil Reduction 2 Item Schematics ----------------- None Robot Schematics ------------------ None Fabricated ------------ Nothing Alien Tech Used ----------------- None Achievements -------------- None Challenges ------------ None Game ------ Seed IonHeartThruster Manual? 0 Play Time 00:21:22 Cumulative 15.5 hours Start 2024.10.25 @ 18:25:18 End 2024.10.25 @ 18:46:01 Sessions 1 Manual Loads 0 Difficulty Rogue Special Mode None Game No. 18 Rogue 18 Adventurer 0 Explorer 0 Win Type - Total 0 Types 0/0/0/0/0/0/0/0/0 Lore% 9 Gallery% 17 Achievement% 14 Wizard Run 0 Options --------- Layout 1 ASCII 0 Keyboard 1 Movement Vi Keybinds 0 Fullscreen 1 Font 32/SmallcapsGlow Map View 50x40 Zoom Use 0% Tactical HUD 1 Map Filters NONE Filters NONE Steam 1 RUN: 652d6a93-97e5-4737-9ac4-7752751c01eb